fUSD/lending_fUSD_20240923
["ID","MTS","AMOUNT","RATE_DAILY","PERIOD"]
[338930760,1727085038506,-200.0,0.0001298,2]
[338930761,1727085038515,-287.096,0.0001298,2]
[338930762,1727085038524,-150.0,0.0001298,2]
[338930763,1727085038534,-2269.3406734,0.0001299,2]
[338930764,1727085038545,-150.0,0.0001299,2]
[338930765,1727085038555,-500.0,0.00012991,2]
[338930766,1727085038564,-609.13,0.00012991,2]
[338930767,1727085038573,-500.0,0.00012991,2]
[338930768,1727085038583,-500.0,0.00012991,2]
[338930769,1727085038593,-500.0,0.00012991,2]
[338930770,1727085038603,-2221.94,0.00012991,2]
[338930771,1727085038612,-500.0,0.00012991,2]
[338930772,1727085038622,-669.65,0.00012991,2]
[338930773,1727085038631,-500.0,0.00012991,2]
[338930774,1727085038641,-500.0,0.00012991,2]
[338930775,1727085038650,-800.57,0.00012991,2]
[338930776,1727085038659,-500.0,0.00012991,2]
[338930777,1727085038668,-500.0,0.00012991,2]
[338930778,1727085038677,-990.95,0.00012991,2]
[338930779,1727085038687,-1251.29,0.00012991,2]
[338930780,1727085038696,-1416.93,0.00012991,2]
[338930781,1727085038705,-500.0,0.00012991,2]
[338930782,1727085038714,-2451.3,0.00012991,2]
[338930783,1727085038723,-500.0,0.00012991,2]
[338930784,1727085038732,-500.0,0.00012991,2]
[338930785,1727085038741,-500.0,0.00012991,2]
[338930787,1727085038751,-572.58,0.00012991,2]
[338930788,1727085038760,-500.0,0.00012991,2]
[338930789,1727085038769,-500.0,0.00012991,2]
[338930790,1727085038778,-500.0,0.00012991,2]
[338930791,1727085038787,-500.0,0.00012991,2]
[338930792,1727085038796,-500.0,0.00012991,2]
[338930793,1727085038806,-500.0,0.00012991,2]
[338930794,1727085038815,-500.0,0.00012991,2]
[338930795,1727085038824,-500.0,0.00012991,2]
[338930796,1727085038834,-500.0,0.00012991,2]
[338930797,1727085038843,-500.0,0.00012991,2]
[338930798,1727085038852,-500.0,0.00012991,2]
[338930799,1727085038861,-500.0,0.00012991,2]
[338930800,1727085038870,-500.0,0.00012991,2]
[338930801,1727085038879,-500.0,0.00012991,2]
[338930802,1727085038888,-1007.91,0.00012991,2]
[338930803,1727085038897,-500.0,0.00012991,2]
[338930804,1727085038906,-500.0,0.00012991,2]
[338930806,1727085038916,-500.0,0.00012991,2]
[338930807,1727085038925,-500.0,0.00012991,2]
[338930808,1727085038934,-500.0,0.00012991,2]
[338930810,1727085038943,-500.0,0.00012991,2]
[338930812,1727085038952,-500.0,0.00012991,2]
[338930814,1727085038961,-500.0,0.00012991,2]
[338930816,1727085038970,-500.0,0.00012991,2]
[338930817,1727085038980,-500.0,0.00012991,2]
[338930818,1727085038988,-500.0,0.00012991,2]
[338930819,1727085038997,-500.0,0.00012991,2]
[338930820,1727085039006,-674.48,0.00012991,2]
[338930821,1727085039015,-500.0,0.00012991,2]
[338930822,1727085039024,-500.0,0.00012991,2]
[338930823,1727085039033,-500.0,0.00012991,2]
[338930824,1727085039042,-1181.31,0.00012991,2]
[338930825,1727085039051,-500.0,0.00012991,2]
[338930826,1727085039061,-500.0,0.00012991,2]
[338930827,1727085039070,-109.31995451,0.00012991,2]
[338930828,1727085039102,-390.68004549,0.00012991,2]
[338930829,1727085039111,-500.0,0.00012991,2]
[338930830,1727085039121,-1605.98,0.00012991,2]
[338930831,1727085039129,-500.0,0.00012991,2]
[338930832,1727085039139,-506.46,0.00012991,2]
[338930833,1727085039149,-500.0,0.00012991,2]
[338930834,1727085039158,-559.9,0.00012991,2]
[338930835,1727085039167,-500.0,0.00012991,2]
[338930836,1727085039177,-500.0,0.00012991,2]
[338930837,1727085039186,-500.0,0.00012991,2]
[338930838,1727085039195,-500.0,0.00012991,2]
[338930839,1727085039205,-500.0,0.00012991,2]
[338930840,1727085039214,-500.0,0.00012991,2]
[338930841,1727085039225,-500.0,0.00012991,2]
[338930842,1727085039239,-500.0,0.00012991,2]
[338930843,1727085039248,-500.0,0.00012991,2]
[338930844,1727085039258,-500.0,0.00012991,2]
[338930845,1727085039267,-1370.24,0.00012991,2]
[338930846,1727085039276,-500.0,0.00012991,2]
[338930847,1727085039286,-500.0,0.00012991,2]
[338930848,1727085039295,-702.33,0.00012991,2]
[338930849,1727085039304,-500.0,0.00012991,2]
[338930850,1727085039314,-895.71,0.00012991,2]
[338930851,1727085039323,-714.9,0.00012991,2]
[338930852,1727085039333,-661.74,0.00012991,2]
[338930853,1727085039342,-500.0,0.00012991,2]
[338930854,1727085039352,-512.57,0.00012991,2]
[338930855,1727085039362,-500.0,0.00012991,2]
[338930856,1727085039371,-500.0,0.00012991,2]
[338930857,1727085039381,-500.0,0.00012991,2]
[338930858,1727085039390,-1383.31,0.00012991,2]
[338930859,1727085039400,-1657.53,0.00012991,2]
[338930860,1727085039409,-500.0,0.00012991,2]
[338930861,1727085039418,-500.0,0.00012991,2]
[338930862,1727085039428,-1929.13,0.00012991,2]
[338930863,1727085039438,-643.63,0.00012991,2]
[338930864,1727085039447,-500.0,0.00012991,2]
[338930866,1727085039456,-500.0,0.00012991,2]
[338930867,1727085039465,-500.0,0.00012991,2]
[338930868,1727085039476,-500.0,0.00012991,2]
[338930869,1727085039485,-1196.68,0.00012991,2]
[338930870,1727085039494,-500.0,0.00012991,2]
[338930871,1727085039504,-500.0,0.00012991,2]
[338930872,1727085039513,-500.0,0.00012991,2]
[338930873,1727085039523,-524.00507431,0.00012991,2]
[338930874,1727085039532,-1038.82,0.00012991,2]
[338930875,1727085039544,-500.0,0.00012991,2]
[338930876,1727085039554,-500.0,0.00012991,2]
[338930877,1727085039563,-500.0,0.00012991,2]
[338930878,1727085039572,-659.79,0.00012991,2]
[338930879,1727085039583,-1408.59,0.00012991,2]
[338930880,1727085039593,-790.86,0.00012991,2]
[338930881,1727085039602,-604.38,0.00012991,2]
[338930882,1727085039612,-500.0,0.00012991,2]
[338930883,1727085039622,-500.0,0.00012991,2]
[338930884,1727085039632,-500.0,0.00012991,2]
[338930885,1727085039642,-507.09,0.00012991,2]
[338930887,1727085039651,-500.0,0.00012991,2]
[338930888,1727085039660,-500.0,0.00012991,2]
[338930889,1727085039670,-500.0,0.00012991,2]
[338930890,1727085039680,-506.92,0.00012991,2]
[338930891,1727085039690,-500.0,0.00012991,2]
[338930892,1727085039700,-508.19,0.00012991,2]
[338930893,1727085039711,-500.0,0.00012992,2]
[338930894,1727085039721,-500.0,0.00012992,2]
[338930895,1727085039731,-500.0,0.00012992,2]
[338930896,1727085039740,-500.0,0.00012992,2]
[338930897,1727085039750,-500.0,0.00012992,2]
[338930898,1727085039759,-500.0,0.00012992,2]
[338930899,1727085039768,-500.0,0.00012992,2]
[338930900,1727085039777,-652.98,0.00012992,2]
[338930901,1727085039786,-612.65574852,0.00012992,2]
[338930902,1727085039798,-500.0,0.00012992,2]
[338930903,1727085039808,-500.0,0.00012992,2]
[338930904,1727085039818,-500.0,0.00012992,2]
[338930905,1727085039831,-500.0,0.00012992,2]
[338930906,1727085039840,-500.0,0.00012992,2]
[338930907,1727085039850,-500.0,0.00012992,2]
[338930908,1727085039859,-500.0,0.00012992,2]
[338930909,1727085039868,-1550.58,0.00012992,2]
[338930910,1727085039878,-500.0,0.00012992,2]
[338930911,1727085039888,-3003.46,0.00012992,2]
[338930912,1727085039897,-522.37997313,0.00012992,2]
[338930913,1727085039906,-500.0,0.00012992,2]
[338930914,1727085039916,-955.94,0.00012992,2]
[338930915,1727085039925,-500.0,0.00012992,2]
[338930916,1727085040177,-1222.64,0.00012992,2]
[338930917,1727085040188,-500.0,0.00012992,2]
[338930918,1727085040199,-1208.97,0.00012992,2]
[338930919,1727085040210,-1785.59,0.00012992,2]
[338930920,1727085040220,-2429.11,0.00012992,2]
[338930921,1727085040230,-567.72,0.00012992,2]
[338930922,1727085040241,-863.05,0.00012992,2]
[338930923,1727085040250,-500.0,0.00012992,2]
[338930924,1727085040260,-737.74,0.00012992,2]
[338930925,1727085040269,-1152.34,0.00012992,2]
[338930926,1727085040279,-500.0,0.00012992,2]
[338930927,1727085040288,-711.71,0.00012992,2]
[338930928,1727085040297,-500.0,0.00012992,2]
[338930929,1727085040306,-1420.06,0.00012992,2]
[338930930,1727085040316,-2161.28,0.00012992,2]
[338930931,1727085040325,-998.6,0.00012992,2]
[338930932,1727085040334,-2071.31,0.00012992,2]
[338930933,1727085040343,-500.0,0.00012992,2]
[338930934,1727085040352,-500.0,0.00012992,2]
[338930935,1727085040362,-1030.0,0.00012992,2]
[338930936,1727085040372,-500.0,0.00012992,2]
[338930937,1727085040382,-1472.95,0.00012992,2]
[338930938,1727085040395,-500.0,0.00012992,2]
[338930939,1727085040405,-500.0,0.00012992,2]
[338930940,1727085040415,-528.39,0.00012992,2]
[338930941,1727085040426,-2221.64,0.00012992,2]
[338930942,1727085040436,-500.0,0.00012992,2]
[338930943,1727085040446,-500.0,0.00012992,2]
[338930944,1727085040455,-1663.99,0.00012992,2]
[338930945,1727085040465,-500.0,0.00012992,2]
[338930946,1727085040482,-500.0,0.00012992,2]
[338930947,1727085040493,-500.0,0.00012992,2]
[338930948,1727085040503,-500.0,0.00012992,2]
[338930949,1727085040513,-500.0,0.00012992,2]
[338930950,1727085040525,-500.0,0.00012992,2]
[338930951,1727085040535,-500.0,0.00012992,2]
[338930952,1727085040546,-500.0,0.00012992,2]
[338930953,1727085040556,-500.0,0.00012992,2]
[338930954,1727085040566,-500.0,0.00012992,2]
[338930955,1727085040576,-1285.46,0.00012992,2]
[338930956,1727085040586,-500.0,0.00012992,2]
[338930957,1727085040597,-622.89,0.00012992,2]
[338930958,1727085040607,-500.0,0.00012992,2]
[338930959,1727085040617,-500.0,0.00012992,2]
[338930960,1727085040627,-500.0,0.00012992,2]
[338930961,1727085040636,-500.0,0.00012992,2]
[338930962,1727085040645,-500.0,0.00012992,2]
[338930963,1727085040655,-2186.8,0.00012992,2]
[338930964,1727085040664,-926.28,0.00012992,2]
[338930965,1727085040674,-927.53,0.00012992,2]
[338930966,1727085040685,-500.0,0.00012992,2]
[338930967,1727085040695,-500.0,0.00012992,2]
[338930968,1727085040705,-500.0,0.00012992,2]
[338930969,1727085040716,-500.0,0.00012992,2]
[338930970,1727085040739,-500.0,0.00012992,2]
[338930971,1727085040751,-500.0,0.00012992,2]
[338930972,1727085040760,-500.0,0.00012992,2]
[338930973,1727085040770,-501.96,0.00012992,2]
[338930974,1727085040780,-1342.31,0.00012992,2]
[338930975,1727085040790,-500.0,0.00012992,2]
[338930976,1727085040800,-500.0,0.00012992,2]
[338930977,1727085040810,-1179.85,0.00012992,2]
[338930978,1727085040819,-1416.03,0.00012992,2]
[338930979,1727085040828,-500.0,0.00012992,2]
[338930980,1727085040838,-1129.69,0.00012992,2]
[338930981,1727085040848,-500.0,0.00012992,2]
[338930982,1727085040858,-500.0,0.00012992,2]
[338930983,1727085040868,-556.25,0.00012992,2]
[338930984,1727085040877,-500.0,0.00012992,2]
[338930985,1727085040887,-500.0,0.00012992,2]
[338930986,1727085040896,-500.0,0.00012992,2]
[338930987,1727085040905,-500.0,0.00012992,2]
[338930988,1727085040914,-500.0,0.00012992,2]
[338930989,1727085040924,-1792.23,0.00012992,2]
[338930990,1727085040933,-500.0,0.00012992,2]
[338930991,1727085040943,-500.0,0.00012992,2]
[338930992,1727085040957,-1556.72,0.00012992,2]
[338930993,1727085040966,-500.0,0.00012992,2]
[338930994,1727085040975,-500.0,0.00012992,2]
[338930995,1727085040985,-780.45,0.00012992,2]
[338930996,1727085040994,-500.0,0.00012992,2]
[338930997,1727085041004,-636.0,0.00012992,2]
[338930998,1727085041014,-615.19,0.00012992,2]
[338930999,1727085041024,-500.0,0.00012992,2]
[338931000,1727085041034,-500.0,0.00012992,2]
[338931001,1727085041044,-842.17,0.00012992,2]
[338931002,1727085041054,-624.7,0.00012992,2]
[338931003,1727085041064,-501.75800681,0.00012992,2]
[338931004,1727085041074,-500.0,0.00012992,2]
[338931005,1727085041084,-500.0,0.00012992,2]
[338931006,1727085041097,-500.0,0.00012992,2]
[338931007,1727085041107,-500.0,0.00012992,2]
[338931008,1727085041117,-933.1,0.00012992,2]
[338931009,1727085041127,-500.0,0.00012992,2]
[338931010,1727085041136,-500.0,0.00012992,2]
[338931011,1727085041146,-564.9338766,0.00012992,2]
[338931012,1727085041155,-594.53,0.00012992,2]
[338931013,1727085041165,-687.16,0.00012992,2]
[338931014,1727085041174,-554.7645875,0.00012992,2]
[338931015,1727085041184,-874.7,0.00012992,2]
[338931016,1727085041194,-500.0,0.00012992,2]
[338931017,1727085041203,-553.75,0.00012992,2]
[338931018,1727085041213,-500.0,0.00012992,2]
[338931019,1727085041224,-500.0,0.00012992,2]
[338931020,1727085041240,-500.0,0.00012992,2]
[338931021,1727085041249,-2600.39,0.00012992,2]
[338931022,1727085041258,-936.17,0.00012992,2]
[338931023,1727085041270,-500.0,0.00012992,2]
[338931024,1727085041280,-500.0,0.00012992,2]
[338931025,1727085041289,-500.0,0.00012992,2]
[338931026,1727085041300,-500.0,0.00012992,2]
[338931027,1727085041310,-500.0,0.00012992,2]
[338931028,1727085041320,-500.0,0.00012992,2]
[338931029,1727085041330,-500.0,0.00012992,2]
[338931030,1727085041339,-500.0,0.00012992,2]
[338931031,1727085041349,-500.0,0.00012992,2]
[338931032,1727085041358,-1332.66,0.00012992,2]
[338931033,1727085041368,-500.0,0.00012992,2]
[338931034,1727085041378,-505.79,0.00012992,2]
[338931035,1727085041387,-500.0,0.00012992,2]
[338931036,1727085041397,-500.0,0.00012992,2]
[338931037,1727085041407,-984.96,0.00012992,2]
[338931038,1727085041418,-500.0,0.00012992,2]
[338931039,1727085041428,-645.75,0.00012992,2]
[338931040,1727085041438,-529.7,0.00012992,2]
[338931041,1727085041449,-500.0,0.00012992,2]
[338931042,1727085041458,-500.0,0.00012992,2]
[338931043,1727085041468,-500.0,0.00012992,2]
[338931044,1727085041478,-500.0,0.00012992,2]
[338931045,1727085041488,-500.0,0.00012992,2]
[338931046,1727085041498,-500.0,0.00012992,2]
[338931047,1727085041507,-500.0,0.00012992,2]
[338931048,1727085041516,-500.0,0.00012992,2]
[338931049,1727085041526,-500.0,0.00012992,2]
[338931050,1727085041535,-709.8,0.00012992,2]
[338931051,1727085041545,-662.81,0.00012992,2]
[338931052,1727085041558,-690.74,0.00012992,2]
[338931053,1727085041567,-500.0,0.00012992,2]
[338931054,1727085041577,-971.21,0.00012992,2]
[338931055,1727085041586,-500.0,0.00012992,2]
[338931056,1727085041598,-502.80404547,0.00012992,2]
[338931057,1727085041608,-500.0,0.00012992,2]
[338931058,1727085041618,-500.0,0.00012992,2]
[338931059,1727085041628,-2042.1,0.00012992,2]
[338931060,1727085041639,-500.0,0.00012992,2]
[338931061,1727085041649,-1484.33,0.00012992,2]
[338931062,1727085041658,-502.38991098,0.00012992,2]
[338931063,1727085041668,-1148.17,0.00012992,2]
[338931064,1727085041678,-426.85736267,0.00012992,2]
[338931065,1727085041687,-1433.14,0.00012992,2]
[338931066,1727085041697,-959.5,0.00012992,2]
[338931067,1727085041707,-500.0,0.00012992,2]
[338931068,1727085041716,-500.0,0.00012992,2]
[338931069,1727085041731,-500.0,0.00012992,2]
[338931070,1727085041740,-1016.58,0.00012992,2]
[338931071,1727085041749,-585.06,0.00012992,2]
[338931072,1727085041759,-2782.67,0.00012992,2]
[338931073,1727085041768,-1379.59,0.00012992,2]
[338931074,1727085041777,-562.98,0.00012992,2]
[338931075,1727085041787,-579.33,0.00012992,2]
[338931076,1727085041795,-500.0,0.00012992,2]
[338931077,1727085041804,-498.29939265,0.00012992,2]
[338931078,1727085041814,-633.94,0.00012992,2]
[338931079,1727085041823,-629.86,0.00012992,2]
[338931080,1727085041832,-500.0,0.00012992,2]
[338931081,1727085041842,-500.0,0.00012992,2]
[338931082,1727085041853,-500.0,0.00012992,2]
[338931083,1727085041863,-722.11,0.00012992,2]
[338931084,1727085041873,-500.0,0.00012992,2]
[338931085,1727085041883,-500.0,0.00012992,2]
[338931086,1727085041892,-500.67,0.00012992,2]
[338931087,1727085041903,-600.42,0.00012992,2]
[338931088,1727085041913,-500.0,0.00012992,2]
[338931089,1727085041924,-500.0,0.00012992,2]
[338931090,1727085041933,-1427.98,0.00012992,2]
[338931091,1727085041943,-500.0,0.00012992,2]
[338931092,1727085041952,-500.0,0.00012992,2]
[338931093,1727085041961,-1487.81,0.00012992,2]
[338931094,1727085041970,-500.0,0.00012992,2]
[338931095,1727085041982,-500.0,0.00012992,2]
[338931096,1727085041991,-854.0,0.00012992,2]
[338931097,1727085042001,-1146.46,0.00012992,2]
[338931098,1727085042010,-500.0,0.00012992,2]
[338931099,1727085042019,-500.0,0.00012992,2]
[338931100,1727085042029,-500.0,0.00012992,2]
[338931101,1727085042038,-1207.94,0.00012992,2]
[338931102,1727085042047,-500.0,0.00012992,2]
[338931103,1727085042057,-500.0,0.00012992,2]
[338931104,1727085042067,-778.02,0.00012992,2]
[338931105,1727085042076,-300.70998995,0.00012992,2]
[338931106,1727085042087,-500.0,0.00012992,2]
[338931107,1727085042097,-855.08,0.00012992,2]
[338931108,1727085042107,-734.98,0.00012992,2]
[338931109,1727085042118,-500.0,0.00012992,2]
[338931110,1727085042127,-500.0,0.00012992,2]
[338931111,1727085042137,-3931.18,0.00012992,2]
[338931112,1727085042146,-500.0,0.00012992,2]
[338931113,1727085042156,-500.0,0.00012992,2]
[338931114,1727085042165,-500.0,0.00012992,2]
[338931115,1727085042175,-552.83,0.00012992,2]
[338931116,1727085042184,-2591.44,0.00012992,2]
[338931117,1727085042194,-500.0,0.00012992,2]
[338931118,1727085042204,-500.0,0.00012992,2]
[338931119,1727085042213,-500.0,0.00012992,2]
[338931120,1727085042224,-500.0,0.00012992,2]
[338931121,1727085042234,-500.0,0.00012992,2]
[338931122,1727085042243,-1021.9,0.00012992,2]
[338931123,1727085042253,-500.0,0.00012992,2]
[338931124,1727085042262,-500.0,0.00012992,2]
[338931125,1727085042271,-500.0,0.00012992,2]
[338931126,1727085042281,-500.0,0.00012992,2]
[338931127,1727085042290,-879.91,0.00012992,2]
[338931128,1727085042300,-1067.4,0.00012992,2]
[338931129,1727085042309,-500.0,0.00012992,2]
[338931130,1727085042319,-599.11,0.00012992,2]
[338931131,1727085042328,-946.69,0.00012992,2]
[338931132,1727085042338,-908.8,0.00012992,2]
[338931133,1727085042348,-500.0,0.00012992,2]
[338931134,1727085042357,-1122.62,0.00012992,2]
[338931135,1727085042366,-1097.24,0.00012992,2]
[338931136,1727085042376,-500.0,0.00012992,2]
[338931137,1727085042386,-500.0,0.00012992,2]
[338931138,1727085042396,-500.0,0.00012992,2]
[338931139,1727085042405,-591.92,0.00012992,2]
[338931140,1727085042415,-1015.45,0.00012992,2]
[338931141,1727085042424,-500.0,0.00012992,2]
[338931142,1727085042434,-958.03,0.00012992,2]
[338931143,1727085042443,-696.88,0.00012992,2]
[338931144,1727085042452,-500.0,0.00012992,2]
[338931145,1727085042462,-500.0,0.00012992,2]
[338931146,1727085042472,-1242.99,0.00012992,2]
[338931147,1727085042492,-546.95,0.00012992,2]
[338931148,1727085042501,-500.0,0.00012992,2]
[338931149,1727085042511,-578.56,0.00012992,2]
[338931150,1727085042520,-649.21,0.00012992,2]
[338931151,1727085042530,-1047.21,0.00012992,2]
[338931152,1727085042540,-500.0,0.00012992,2]
[338931153,1727085042552,-500.0,0.00012992,2]
[338931154,1727085042562,-500.0,0.00012992,2]
[338931155,1727085042572,-606.49,0.00012992,2]
[338931156,1727085042582,-595.98,0.00012992,2]
[338931157,1727085042591,-696.67,0.00012992,2]
[338931158,1727085042601,-500.0,0.00012992,2]
[338931159,1727085042611,-715.75,0.00012992,2]
[338931160,1727085042621,-695.33,0.00012992,2]
[338931161,1727085042630,-500.0,0.00012992,2]
[338931162,1727085042640,-500.0,0.00012992,2]
[338931163,1727085042650,-1038.37,0.00012992,2]
[338931164,1727085042660,-500.0,0.00012992,2]
[338931165,1727085042669,-500.0,0.00012992,2]
[338931166,1727085042679,-1012.62,0.00012992,2]
[338931167,1727085042689,-500.0,0.00012992,2]
[338931168,1727085042699,-500.0,0.00012992,2]
[338931169,1727085042709,-500.0,0.00012992,2]
[338931170,1727085042719,-819.91,0.00012992,2]
[338931171,1727085042730,-500.0,0.00012992,2]
[338931172,1727085042740,-602.83,0.00012992,2]
[338931173,1727085042749,-887.41,0.00012992,2]
[338931174,1727085042759,-956.55,0.00012992,2]
[338931175,1727085042768,-936.92,0.00012992,2]
[338931176,1727085042777,-556.22,0.00012992,2]
[338931177,1727085042787,-6013.79,0.00012992,2]
[338931178,1727085042796,-500.0,0.00012992,2]
[338931179,1727085042805,-500.0,0.00012992,2]
[338931180,1727085042815,-500.0,0.00012992,2]
[338931181,1727085042824,-863.99,0.00012992,2]
[338931182,1727085042834,-500.0,0.00012992,2]
[338931183,1727085042843,-500.0,0.00012992,2]
[338931184,1727085042853,-500.0,0.00012992,2]
[338931185,1727085042862,-2406.3,0.00012992,2]
[338931186,1727085042871,-923.78,0.00012992,2]
[338931187,1727085042881,-501.3,0.00012992,2]
[338931188,1727085042890,-1438.21,0.00012992,2]
[338931189,1727085042900,-500.0,0.00012992,2]
[338931190,1727085042909,-500.0,0.00012992,2]
[338931191,1727085042919,-500.0,0.00012992,2]
[338931192,1727085042929,-876.09,0.00012992,2]
[338931193,1727085042939,-500.0,0.00012992,2]
[338931194,1727085042949,-849.56,0.00012992,2]
[338931195,1727085042958,-713.87,0.00012992,2]
[338931196,1727085042968,-500.0,0.00012992,2]
[338931197,1727085042982,-500.0,0.00012992,2]
[338931198,1727085042992,-656.45,0.00012992,2]
[338931199,1727085043001,-701.89,0.00012992,2]
[338931200,1727085043010,-500.0,0.00012992,2]
[338931201,1727085043020,-843.55,0.00012992,2]
[338931202,1727085043030,-500.0,0.00012992,2]
[338931203,1727085043039,-928.36,0.00012992,2]
[338931204,1727085043049,-850.19,0.00012992,2]
[338931205,1727085043059,-500.0,0.00012992,2]
[338931206,1727085043069,-500.0,0.00012992,2]
[338931207,1727085043078,-500.0,0.00012992,2]
[338931208,1727085043088,-925.81,0.00012992,2]
[338931209,1727085043097,-500.0,0.00012992,2]
[338931210,1727085043107,-500.0,0.00012992,2]
[338931211,1727085043117,-500.0,0.00012992,2]
[338931212,1727085043127,-500.0,0.00012992,2]
[338931213,1727085043136,-750.57,0.00012992,2]
[338931214,1727085043147,-500.0,0.00012992,2]
[338931215,1727085043157,-512.27,0.00012992,2]
[338931216,1727085043166,-715.23,0.00012992,2]
[338931217,1727085043176,-500.0,0.00012992,2]
[338931219,1727085043185,-500.0,0.00012992,2]
[338931221,1727085043195,-500.0,0.00012992,2]
[338931222,1727085043205,-848.87,0.00012992,2]
[338931223,1727085043215,-500.0,0.00012992,2]
[338931224,1727085043225,-500.0,0.00012992,2]
[338931225,1727085043236,-643.67,0.00012992,2]
[338931226,1727085043245,-500.0,0.00012992,2]
[338931227,1727085043255,-500.0,0.00012992,2]
[338931228,1727085043264,-1466.17,0.00012992,2]
[338931229,1727085043273,-500.0,0.00012992,2]
[338931230,1727085043283,-500.0,0.00012992,2]
[338931231,1727085043292,-501.38337731,0.00012992,2]
[338931232,1727085043302,-821.43,0.00012992,2]
[338931233,1727085043311,-500.0,0.00012992,2]
[338931234,1727085043321,-500.0,0.00012992,2]
[338931235,1727085043330,-591.71,0.00012992,2]
[338931236,1727085043340,-3197.22,0.00012992,2]
[338931237,1727085043350,-500.0,0.00012992,2]
[338931238,1727085043359,-556.91,0.00012992,2]
[338931239,1727085043368,-500.0,0.00012992,2]
[338931240,1727085043378,-500.0,0.00012992,2]
[338931241,1727085043388,-500.0,0.00012992,2]
[338931242,1727085043397,-500.0,0.00012992,2]
[338931243,1727085043407,-500.0,0.00012992,2]
[338931244,1727085043416,-500.0,0.00012992,2]
[338931245,1727085043426,-500.0,0.00012992,2]
[338931246,1727085043436,-500.0,0.00012992,2]
[338931247,1727085043446,-1313.78,0.00012992,2]
[338931248,1727085043455,-500.0,0.00012992,2]
[338931249,1727085043465,-500.0,0.00012992,2]
[338931250,1727085043474,-500.0,0.00012992,2]
[338931251,1727085043487,-710.49,0.00012992,2]
[338931252,1727085043496,-722.97,0.00012992,2]
[338931253,1727085043505,-572.95,0.00012992,2]
[338931254,1727085043515,-500.0,0.00012992,2]
[338931255,1727085043525,-500.0,0.00012992,2]
[338931256,1727085043534,-747.8,0.00012992,2]
[338931257,1727085043545,-615.97,0.00012992,2]
[338931258,1727085043557,-500.0,0.00012992,2]
[338931259,1727085043566,-500.0,0.00012992,2]
[338931260,1727085043576,-500.0,0.00012992,2]
[338931261,1727085043586,-1000.0,0.00012992,2]
[338931262,1727085043596,-500.0,0.00012992,2]
[338931263,1727085043606,-660.12,0.00012992,2]
[338931264,1727085043616,-899.75,0.00012992,2]
[338931265,1727085043627,-500.0,0.00012992,2]
[338931266,1727085043636,-500.0,0.00012992,2]
[338931267,1727085043646,-500.0,0.00012992,2]
[338931268,1727085043655,-500.0,0.00012992,2]
[338931269,1727085043665,-741.38,0.00012992,2]